fUST/lending_fUST_20250503
["ID","MTS","AMOUNT","RATE_DAILY","PERIOD"]
[359703953,1746267038634,-400.0,0.00019064,2]
[359703954,1746267038645,-400.0,0.00019064,2]
[359703955,1746267038656,-400.0,0.00019064,2]
[359703956,1746267038667,-400.0,0.00019064,2]
[359703957,1746267038677,-400.0,0.00019064,2]
[359703958,1746267038688,-400.0,0.00019064,2]
[359703959,1746267038698,-400.0,0.00019064,2]
[359703960,1746267038707,-400.0,0.00019064,2]
[359703961,1746267038719,-400.0,0.00019064,2]
[359703962,1746267038728,-400.0,0.00019064,2]
[359703963,1746267038739,-400.0,0.00019064,2]
[359703964,1746267038749,-400.0,0.00019064,2]
[359703965,1746267038759,-400.0,0.00019064,2]
[359703975,1746267038769,-400.0,0.00019064,2]
[359703976,1746267039038,-400.0,0.00019064,2]
[359703977,1746267039055,-409.86483227,0.00019064,2]
[359703978,1746267039066,-195.83767598,0.00019064,2]
[359703979,1746267039075,-400.0,0.00019064,2]
[359703980,1746267039085,-400.0,0.00019064,2]
[359703981,1746267039095,-203.80305062,0.00019064,2]
[359703982,1746267039105,-400.0,0.00019064,2]
[359703984,1746267039114,-400.0,0.00019064,2]
[359703986,1746267039124,-404.70926043,0.00019064,2]
[359703988,1746267039134,-400.0,0.00019064,2]
[359703989,1746267039143,-400.0,0.00019064,2]
[359703990,1746267039153,-400.0,0.00019064,2]
[359703991,1746267039164,-524.0869332,0.00019064,2]
[359703992,1746267039173,-400.0,0.00019064,2]
[359703993,1746267039183,-400.0,0.00019064,2]
[359703994,1746267039195,-556.21,0.00019064,2]
[359703995,1746267039205,-964.76,0.00019064,2]
[359703996,1746267039216,-492.35,0.00019064,2]
[359703997,1746267039230,-404.04928036,0.00019064,2]
[359703998,1746267039240,-559.93,0.00019064,2]
[359703999,1746267039249,-400.0,0.00019064,2]
[359704000,1746267039259,-493.78,0.00019064,2]
[359704001,1746267039269,-400.0,0.00019064,2]
[359704002,1746267039278,-400.0,0.00019064,2]
[359704003,1746267039288,-400.0,0.00019064,2]
[359704004,1746267039299,-400.0,0.00019064,2]
[359704005,1746267039309,-2281.29,0.00019064,2]
[359704006,1746267039318,-400.0,0.00019064,2]
[359704007,1746267039328,-400.0,0.00019064,2]
[359704008,1746267039337,-446.03693198,0.00019064,2]
[359704009,1746267039346,-400.0,0.00019064,2]
[359704010,1746267039357,-400.0,0.00019064,2]
[359704012,1746267039371,-496.88,0.00019064,2]
[359704013,1746267039381,-400.0,0.00019064,2]
[359704014,1746267039392,-400.0,0.00019064,2]
[359704015,1746267039402,-400.0,0.00019064,2]
[359704016,1746267039413,-400.0,0.00019064,2]
[359704017,1746267039422,-400.0,0.00019064,2]
[359704019,1746267039431,-1325.12,0.00019064,2]
[359704020,1746267039442,-400.0,0.00019064,2]
[359704021,1746267039451,-400.0,0.00019064,2]
[359704022,1746267039462,-400.0,0.00019064,2]
[359704023,1746267039472,-761.87,0.00019064,2]
[359704025,1746267039483,-892.36,0.00019064,2]
[359704027,1746267039492,-400.0,0.00019064,2]
[359704028,1746267039503,-400.0,0.00019066,2]
[359704029,1746267039513,-461.16,0.00019066,2]
[359704030,1746267039523,-400.0,0.00019066,2]
[359704031,1746267039532,-400.0,0.00019066,2]
[359704032,1746267039541,-400.0,0.00019066,2]
[359704033,1746267039551,-400.0,0.00019066,2]
[359704034,1746267039560,-400.0,0.00019066,2]
[359704035,1746267039570,-400.0,0.00019066,2]
[359704036,1746267039579,-400.0,0.00019066,2]
[359704037,1746267039589,-400.0,0.00019066,2]
[359704038,1746267039598,-400.0,0.00019066,2]
[359704039,1746267039608,-1300.87,0.00019066,2]
[359704040,1746267039618,-400.0,0.00019066,2]
[359704041,1746267039628,-400.0,0.00019066,2]
[359704042,1746267039638,-400.0,0.00019066,2]
[359704043,1746267039648,-400.0,0.00019066,2]
[359704044,1746267039659,-400.0,0.00019066,2]
[359704045,1746267039669,-400.0,0.00019066,2]
[359704046,1746267039679,-400.0,0.00019066,2]
[359704047,1746267039689,-400.0,0.00019067,2]
[359704048,1746267039699,-400.0,0.00019067,2]
[359704049,1746267039709,-400.0,0.00019067,2]
[359704050,1746267039722,-464.48,0.00019067,2]
[359704051,1746267039732,-175.9390693,0.00019067,2]
[359704594,1746267431038,374.96607199,0.00017966,2]
[359704624,1746268025130,-4008.54744953,0.00018009,2]
[359704625,1746268029280,-732.03475247,0.00018009,2]
[359704626,1746268029303,-669.0,0.00018065,2]
[359704627,1746268029325,-300.0,0.00018065,2]
[359704628,1746268029346,-94.33926066,0.00018066,2]
[359704636,1746268174374,-9905.66073934,0.00018066,2]
[359704637,1746268174395,-300.0,0.00018629,2]
[359704638,1746268174416,-254.15366066,0.0001863,2]
[359704681,1746268231966,-245.84633934,0.0001863,2]
[359704683,1746268231976,-440.04143747,0.00018858,2]
[359704685,1746268231985,-150.0,0.000189,2]
[359704687,1746268231996,-151.0,0.00019041,2]
[359704689,1746268232005,-151.0,0.0001905,2]
[359704691,1746268232015,-300.0,0.0001905,2]
[359704694,1746268232024,-8526.6772417,0.00019051,2]
[359705010,1746268238009,-500.0,0.0001905,2]
[359705011,1746268238018,-548.25353974,0.0001905,2]
[359705012,1746268238028,-500.0,0.0001905,2]
[359705013,1746268238038,-251.74646026,0.0001905,2]
[359705014,1746268238230,-248.25353974,0.0001905,2]
[359705015,1746268238240,-500.0,0.0001905,2]
[359705016,1746268238250,-500.0,0.0001905,2]
[359705017,1746268238259,-500.0,0.0001905,2]
[359705018,1746268238269,-500.0,0.0001905,2]
[359705019,1746268238279,-500.0,0.0001905,2]
[359705020,1746268238289,-500.0,0.0001905,2]
[359705021,1746268238298,-500.0,0.0001905,2]
[359705022,1746268238307,-500.0,0.0001905,2]
[359705023,1746268238316,-500.0,0.0001905,2]
[359705024,1746268238326,-500.0,0.0001905,2]
[359705025,1746268238335,-158.58272456,0.0001905,2]
[359705026,1746268238344,-500.0,0.0001905,2]
[359705027,1746268238353,-500.0,0.0001905,2]
[359705028,1746268238363,-544.63900863,0.0001905,2]
[359705029,1746268238372,-500.0,0.0001905,2]
[359705030,1746268238381,-500.0,0.0001905,2]
[359705031,1746268238391,-500.0,0.0001905,2]
[359705032,1746268238400,-500.0,0.0001905,2]
[359705033,1746268238410,-555.6171002,0.0001905,2]
[359705034,1746268238419,-469.50330126,0.0001905,2]
[359705035,1746268238428,-400.38550134,0.0001905,2]
[359705036,1746268238437,-500.0,0.0001905,2]
[359705037,1746268238447,-500.0,0.0001905,2]
[359705038,1746268238456,-500.0,0.0001905,2]
[359705039,1746268238465,-500.0,0.0001905,2]
[359705040,1746268238475,-1874.56514684,0.00019051,2]
[359705041,1746268238484,-400.0,0.00019052,2]
[359705042,1746268238494,-400.0,0.00019052,2]
[359705043,1746268238504,-535.07,0.00019052,2]
[359705044,1746268238514,-400.0,0.00019052,2]
[359705045,1746268238523,-400.0,0.00019052,2]
[359705046,1746268238533,-2408.28,0.00019052,2]
[359705047,1746268238542,-400.0,0.00019052,2]
[359705048,1746268238551,-891.33,0.00019052,2]
[359705049,1746268238561,-428.3,0.00019052,2]
[359705050,1746268238571,-400.0,0.00019052,2]
[359705051,1746268238580,-472.56,0.00019052,2]
[359705052,1746268238590,-1057.67,0.00019052,2]
[359705053,1746268238599,-638.7,0.00019053,2]
[359705054,1746268238608,-518.58,0.00019053,2]
[359705055,1746268238617,-400.0,0.00019053,2]
[359705056,1746268238626,-400.0,0.00019053,2]
[359705057,1746268238635,-538.21,0.00019053,2]
[359705058,1746268238645,-400.0,0.00019053,2]
[359705059,1746268238654,-400.0,0.00019053,2]
[359705060,1746268238663,-401.86,0.00019053,2]
[359705061,1746268238673,-126.65676005,0.00019053,2]
[359705062,1746268238684,-892.94323995,0.00019053,2]
[359705063,1746268238694,-400.0,0.00019053,2]
[359705064,1746268238704,-596.31,0.00019053,2]
[359705065,1746268238713,-308.08792203,0.00019053,2]
[359705307,1746268246041,-435.55853583,0.00018952,2]
[359706362,1746269049117,265.7872093,0.00017988,2]
[359706365,1746269177590,19859.24671871,0.00017988,2]
[359706366,1746269177627,1898.52156959,0.00017988,2]
[359706367,1746269207187,159.67846778,0.00017949,2]
[359706369,1746269229127,-269.4347772,0.00018016,2]
[359706370,1746269229151,-250.0,0.00018049,2]
[359706371,1746269229174,-539.4600168,0.00018056,2]
[359706372,1746269229197,-440.04143747,0.00018839,2]
[359706373,1746269229219,-150.0,0.000189,2]
[359706374,1746269229240,-524.83898946,0.00018945,2]
[359706375,1746269229262,-2288.40322049,0.00018951,2]
[359706376,1746269229283,-275.39,0.00019039,3]
[359706377,1746269229306,-826.2,0.00019041,3]
[359706378,1746269229328,-152.0,0.00019042,2]
[359706379,1746269229351,-300.0,0.00019044,2]
[359706380,1746269229373,-400.0,0.00019045,2]
[359706381,1746269229395,-400.0,0.00019045,2]
[359706382,1746269229418,-339.48650758,0.00019045,2]
[359706383,1746269229439,-500.0,0.00019045,2]
[359706384,1746269229461,-494.68263155,0.00019045,2]
[359706385,1746269229486,-500.0,0.00019045,2]
[359706386,1746269229509,-500.0,0.00019045,2]
[359706387,1746269229531,-227.18211207,0.00019045,2]
[359706388,1746269229558,-500.0,0.00019045,2]
[359706389,1746269229579,-500.0,0.00019045,2]
[359706390,1746269229600,-467.87942621,0.00019045,2]
[359706391,1746269229622,-224.50182829,0.00019045,2]
[359706392,1746269229649,-500.0,0.00019045,2]
[359706393,1746269229671,-500.0,0.00019045,2]
[359706394,1746269229693,-500.0,0.00019045,2]
[359706395,1746269229720,-500.0,0.00019045,2]
[359706396,1746269229742,-500.0,0.00019045,2]
[359706397,1746269229764,-500.0,0.00019045,2]
[359706398,1746269229791,-500.0,0.00019045,2]
[359706399,1746269229812,-500.0,0.00019045,2]
[359706400,1746269229840,-500.0,0.00019045,2]
[359706401,1746269229864,-500.0,0.00019045,2]
[359706402,1746269229890,-500.0,0.00019045,2]
[359706403,1746269229913,-500.0,0.00019045,2]
[359706404,1746269229941,-500.0,0.00019045,2]
[359706405,1746269229971,-500.0,0.00019045,2]
[359706406,1746269229992,-500.0,0.00019045,2]
[359706407,1746269230017,-500.0,0.00019045,2]
[359706408,1746269230038,-500.0,0.00019045,2]
[359706409,1746269230063,-500.0,0.00019045,2]
[359706410,1746269230088,-500.0,0.00019045,2]
[359706411,1746269230112,-500.0,0.00019045,2]
[359706412,1746269230138,-500.0,0.00019045,2]
[359706413,1746269230164,-500.0,0.00019045,2]
[359706414,1746269230190,-500.0,0.00019045,2]
[359706415,1746269230214,-500.0,0.00019045,2]
[359706416,1746269230238,-500.0,0.00019045,2]
[359706417,1746269230262,-500.0,0.00019045,2]
[359706418,1746269230285,-500.0,0.00019045,2]
[359706419,1746269230309,-500.0,0.00019045,2]
[359706420,1746269230333,-500.0,0.00019045,2]
[359706421,1746269230356,-500.0,0.00019045,2]
[359706422,1746269230381,-500.0,0.00019045,2]
[359706423,1746269230407,-500.0,0.00019045,2]
[359706424,1746269230436,-500.0,0.00019045,2]
[359706425,1746269230461,-500.0,0.00019045,2]
[359706426,1746269230488,-500.0,0.00019045,2]
[359706427,1746269230513,-500.0,0.00019045,2]
[359706428,1746269230538,-500.0,0.00019045,2]
[359706429,1746269230562,-500.0,0.00019045,2]
[359706430,1746269230588,-500.0,0.00019045,2]
[359706431,1746269230613,-500.0,0.00019045,2]
[359706432,1746269230637,-500.0,0.00019045,2]
[359706433,1746269230663,-500.0,0.00019045,2]
[359706434,1746269230694,-500.0,0.00019045,2]
[359706435,1746269230720,-500.0,0.00019045,2]
[359706436,1746269230750,-500.0,0.00019045,2]
[359706437,1746269230779,-500.0,0.00019045,2]
[359706438,1746269230807,-500.0,0.00019045,2]
[359706439,1746269230837,-500.0,0.00019045,2]
[359706440,1746269230866,-500.0,0.00019045,2]
[359706441,1746269230893,-500.0,0.00019045,2]
[359706442,1746269230920,-500.0,0.00019045,2]
[359706443,1746269230949,-500.0,0.00019045,2]
[359706444,1746269230977,-500.0,0.00019045,2]
[359706445,1746269231006,-500.0,0.00019045,2]
[359706446,1746269231035,-500.0,0.00019045,2]
[359706447,1746269231065,-500.0,0.00019045,2]
[359706448,1746269231095,-500.0,0.00019045,2]
[359706449,1746269231120,-500.0,0.00019045,2]
[359706450,1746269231143,-645.72098641,0.00019045,2]
[359706451,1746269231168,-500.0,0.00019045,2]
[359706452,1746269231196,-500.0,0.00019045,2]
[359706453,1746269231221,-500.0,0.00019045,2]
[359706454,1746269231249,-500.0,0.00019045,2]
[359706455,1746269231278,-500.0,0.00019045,2]
[359706456,1746269231306,-500.0,0.00019045,2]
[359706457,1746269231333,-500.0,0.00019045,2]
[359706458,1746269231358,-500.0,0.00019045,2]
[359706459,1746269231386,-441.00816912,0.00019045,2]
[359706460,1746269231413,-500.0,0.00019045,2]
[359706461,1746269231442,-500.0,0.00019045,2]
[359706462,1746269231471,-500.0,0.00019045,2]
[359706463,1746269231499,-3272.41336258,0.00019045,2]
[359706464,1746269231525,-3272.41336258,0.00019045,2]
[359706465,1746269231549,-3272.41336258,0.00019045,2]
[359706466,1746269231578,-3272.41336258,0.00019045,2]
[359706467,1746269231606,-3272.41336258,0.00019045,2]
[359706468,1746269231629,-500.0,0.00019045,2]
[359706469,1746269231655,-3272.41336258,0.00019045,2]
[359706470,1746269231683,-3272.41336258,0.00019045,2]
[359706471,1746269231704,-500.0,0.00019045,2]
[359706472,1746269231732,-3272.41336258,0.00019045,2]
[359706473,1746269231760,-3272.41336258,0.00019045,2]
[359706474,1746269231782,-500.0,0.00019045,2]
[359706475,1746269231804,-440.14670656,0.00019045,2]
[359706476,1746269231833,-1007.89424257,0.00019045,2]
[359706477,1746269231986,-2264.51912001,0.00019045,2]
[359706478,1746269232012,-3272.41336258,0.00019045,2]
[359706479,1746269232042,-3272.41336258,0.00019045,2]
[359706480,1746269232073,-3272.41336258,0.00019045,2]
[359706481,1746269232102,-3272.41336258,0.00019045,2]
[359706482,1746269232131,-3272.41336258,0.00019045,2]
[359706483,1746269232157,-3272.41336258,0.00019045,2]
[359706484,1746269232185,-3272.41336258,0.00019045,2]
[359706485,1746269232214,-3272.41336258,0.00019045,2]
[359706486,1746269232239,-3272.41336258,0.00019045,2]
[359706487,1746269232267,-3272.41336258,0.00019045,2]
[359706488,1746269232293,-3272.41336258,0.00019045,2]
[359706489,1746269232318,-3272.41336258,0.00019045,2]
[359706490,1746269232346,-3272.41336258,0.00019045,2]
[359706491,1746269232371,-3272.41336258,0.00019045,2]
[359706492,1746269232395,-3272.41336258,0.00019045,2]
[359706493,1746269232424,-3272.41336258,0.00019045,2]
[359706494,1746269232451,-3272.41336258,0.00019045,2]
[359706495,1746269232478,-3272.41336258,0.00019045,2]
[359706496,1746269232506,-3272.41336264,0.00019045,2]
[359706497,1746269232535,-3272.41336264,0.00019045,2]
[359706498,1746269232556,-451.02008628,0.00019045,2]
[359706499,1746269232579,-440.8729947,0.00019045,2]
[359706500,1746269232782,-363.38177416,0.00019045,2]
[359706501,1746269232804,-163.79560358,0.00019045,2]
[359706502,1746269232825,-400.0,0.00019046,2]
[359706503,1746269232847,-400.0,0.00019046,2]
[359706504,1746269232870,-512.78,0.00019046,2]
[359706505,1746269232892,-400.0,0.00019046,2]
[359706506,1746269232915,-400.0,0.00019046,2]
[359706507,1746269232936,-2307.93,0.00019046,2]
[359706508,1746269232959,-854.19,0.00019046,2]
[359706509,1746269232979,-185.38,0.00019046,2]
[359706510,1746269233001,-410.46,0.00019046,2]
[359706511,1746269233024,-400.0,0.00019046,2]
[359706512,1746269233047,-452.87,0.00019046,2]
[359706513,1746269233068,-1013.6,0.00019046,2]
[359706514,1746269233090,-496.97,0.00019046,2]
[359706515,1746269233114,-612.09,0.00019046,2]
[359706516,1746269233138,-151.0,0.00019046,2]
[359706517,1746269233159,-400.0,0.00019046,2]
[359706518,1746269233179,-400.0,0.00019048,2]
[359706519,1746269233200,-1262.92,0.00019048,2]
[359706520,1746269233221,-400.0,0.00019048,2]
[359706521,1746269233243,-400.0,0.00019048,2]
[359706522,1746269233264,-400.0,0.00019048,2]
[359706523,1746269233287,-400.0,0.00019048,2]
[359706524,1746269233309,-515.79,0.00019048,2]
[359706525,1746269233330,-414.19909182,0.00019048,2]
[359706526,1746269233351,-977.12,0.00019048,2]
[359706527,1746269233375,-400.0,0.00019048,2]
[359706528,1746269233397,-400.0,0.00019048,2]
[359706529,1746269233420,-400.0,0.00019048,2]
[359706530,1746269233440,-324.53,0.00019048,2]
[359706531,1746269233462,-400.0,0.00019048,2]
[359706532,1746269233483,-400.0,0.00019048,2]
[359706533,1746269233506,-400.0,0.00019048,2]
[359706534,1746269233528,-571.46,0.00019048,2]
[359706535,1746269233549,-400.0,0.00019048,2]
[359706536,1746269233570,-405.50547949,0.00019048,2]
[359706537,1746269233593,-400.0,0.00019048,2]
[359706538,1746269233618,-568.31,0.00019048,2]
[359706539,1746269233639,-400.0,0.00019048,2]
[359706540,1746269233660,-400.0,0.00019048,2]
[359706541,1746269233681,-400.0,0.00019048,2]
[359706542,1746269233702,-400.0,0.00019048,2]
[359706543,1746269233723,-400.0,0.00019048,2]
[359706544,1746269233744,-400.0,0.00019048,2]
[359706545,1746269233765,-471.84,0.00019048,2]
[359706546,1746269233786,-400.0,0.00019048,2]
[359706547,1746269233807,-400.0,0.00019048,2]
[359706548,1746269233829,-400.0,0.00019048,2]
[359706549,1746269233849,-400.0,0.00019048,2]
[359706550,1746269233872,-240.31060417,0.00019048,2]
[359706551,1746269233893,-924.57,0.00019048,2]
[359706552,1746269233914,-533.03,0.00019048,2]
[359706553,1746269233934,-504.41,0.00019048,2]
[359706554,1746269233955,-400.0,0.00019048,2]
[359706555,1746269233976,-400.0,0.00019049,2]
[359706556,1746269233997,-400.0,0.00019049,2]
[359706557,1746269234018,-2186.23,0.00019049,2]
[359706558,1746269234039,-400.0,0.00019049,2]
[359706559,1746269234060,-400.0,0.00019049,2]
[359706560,1746269234081,-400.0,0.00019049,2]
[359706561,1746269234102,-476.17,0.00019049,2]
[359706562,1746269234125,-503.2326711,0.00019049,2]
[359706563,1746269234145,-400.0,0.00019049,2]
[359706564,1746269234166,-400.0,0.00019049,2]
[359706565,1746269234187,-400.0,0.00019049,2]
[359706566,1746269234207,-1269.91,0.00019049,2]
[359706567,1746269234228,-730.12,0.00019049,2]
[359706568,1746269234249,-888.79,0.00019049,2]
[359706569,1746269234270,-400.0,0.00019049,2]
[359706570,1746269234290,-400.0,0.0001905,2]
[359706571,1746269234311,-400.0,0.0001905,2]
[359706572,1746269234332,-151.0,0.0001905,2]
[359706573,1746269234353,-400.0,0.0001905,2]
[359706574,1746269234374,-400.0,0.0001905,2]
[359706575,1746269234395,-400.0,0.0001905,2]
[359706576,1746269234418,-400.0,0.0001905,2]
[359706577,1746269234439,-400.0,0.0001905,2]
[359706578,1746269234461,-400.0,0.00019051,2]
[359706579,1746269234482,-400.0,0.00019051,2]
[359706580,1746269234505,-400.0,0.00019051,2]
[359706581,1746269234524,-400.0,0.00019051,2]
[359706582,1746269234544,-400.0,0.00019051,2]
[359706583,1746269234565,-400.0,0.00019051,2]
[359706584,1746269234586,-400.0,0.00019051,2]
[359706585,1746269234606,-400.0,0.00019051,2]
[359706586,1746269234630,-400.0,0.00019051,2]
[359706587,1746269234651,-400.0,0.00019051,2]
[359706588,1746269234671,-400.0,0.00019051,2]
[359706589,1746269234691,-400.0,0.00019051,2]
[359706590,1746269234711,-400.0,0.00019051,2]
[359706591,1746269234731,-400.0,0.00019051,2]
[359706592,1746269234752,-487.62,0.00019051,2]
[359706593,1746269234773,-400.0,0.00019051,2]
[359706594,1746269234793,-400.0,0.00019051,2]
[359706595,1746269234814,-400.0,0.00019051,2]
[359706596,1746269234834,-400.0,0.00019051,2]
[359706597,1746269234854,-400.0,0.00019051,2]
[359706598,1746269234876,-400.0,0.00019051,2]
[359706599,1746269234898,-400.0,0.00019051,2]
[359706600,1746269234920,-400.0,0.00019051,2]
[359706601,1746269234941,-400.0,0.00019051,2]
[359706602,1746269234961,-400.0,0.00019051,2]
[359706603,1746269234981,-485.79,0.00019051,2]
[359706604,1746269235001,-400.0,0.00019051,2]
[359706605,1746269235023,-426.45,0.00019051,2]
[359706606,1746269235045,-409.54966815,0.00019051,2]
[359706607,1746269235065,-400.0,0.00019051,2]
[359706608,1746269235088,-400.0,0.00019051,2]
[359706609,1746269235108,-400.0,0.00019051,2]
[359706610,1746269235129,-400.0,0.00019051,2]
[359706611,1746269235148,-400.0,0.00019051,2]
[359706612,1746269235168,-400.0,0.00019051,2]
[359706613,1746269235188,-400.0,0.00019051,2]
[359706614,1746269235207,-1246.66,0.00019051,2]
[359706615,1746269235227,-400.0,0.00019051,2]
[359706616,1746269235246,-400.0,0.00019051,2]
[359706617,1746269235265,-400.0,0.00019051,2]
[359706618,1746269235284,-400.0,0.00019051,2]
[359706619,1746269235304,-2164.69,0.00019051,2]
[359706620,1746269235323,-400.0,0.00019051,2]
[359706621,1746269235343,-400.0,0.00019051,2]
[359706622,1746269235364,-400.0,0.00019051,2]
[359706623,1746269235383,-400.0,0.00019051,2]
[359706624,1746269235403,-400.0,0.00019051,2]
[359706625,1746269235427,-415.50288138,0.00019051,2]
[359706626,1746269235446,-400.0,0.00019051,2]
[359706627,1746269235467,-400.0,0.00019051,2]
[359706628,1746269235487,-151.0,0.00019052,2]
[359706629,1746269235509,-151.0,0.00019052,2]
[359706630,1746269235531,-151.0,0.00019055,2]
[359706631,1746269235552,-151.0,0.00019055,2]
[359706632,1746269235572,-151.0,0.00019059,2]
[359706633,1746269235592,-151.0,0.00019059,2]
[359706634,1746269235614,-155.190602,0.00019062,2]
[359706635,1746269235634,-500.0,0.00019073,2]
[359706636,1746269235654,-500.0,0.00019073,2]
[359706637,1746269235674,-500.0,0.00019073,2]
[359706638,1746269235695,-393.41134768,0.00019073,2]
[359706639,1746269235715,-500.0,0.00019073,2]
[359706640,1746269235734,-500.0,0.00019073,2]
[359706641,1746269235754,-274.96966962,0.00019073,2]
[359706642,1746269235774,-500.0,0.00019073,2]
[359706643,1746269235794,-500.0,0.00019073,2]
[359706644,1746269235814,-501.61457151,0.00019073,2]
[359706645,1746269235834,-500.0,0.00019073,2]
[359706646,1746269235855,-500.0,0.00019073,2]
[359706647,1746269235876,-136.85024663,0.00019073,2]
[359706648,1746269240142,-500.0,0.00019045,2]
[359706649,1746269240162,-1438.61623221,0.00019048,2]
[359706650,1746269242140,-400.0,0.00019045,2]
[359706651,1746269242163,-656.52376779,0.00019048,2]
[359706652,1746269242183,-363.14975337,0.00019073,2]
[359706653,1746269242206,-500.0,0.00019073,2]
[359706654,1746269242226,-500.0,0.00019073,2]
[359706655,1746269242246,-500.0,0.00019073,2]
[359706656,1746269242266,-500.0,0.00019073,2]
[359706657,1746269242286,-501.38028874,0.00019073,2]
[359706658,1746269242307,-500.0,0.00019073,2]
[359706659,1746269242326,-500.0,0.00019073,2]
[359706660,1746269242346,-500.0,0.00019073,2]
[359706661,1746269242366,-501.50885988,0.00019073,2]
[359706662,1746269242386,-247.66633022,0.00019073,2]
[359706663,1746269245089,-400.0,0.00019046,2]
[359706664,1746269245109,-96.32273954,0.00019073,2]
[359706665,1746269245137,-156.91836924,0.00019073,2]
[359706666,1746269245157,-372.60880492,0.00019073,2]
[359706667,1746269245177,-198.0,0.00019178,2]
[359706668,1746269245197,-151.0,0.00019178,2]
[359706669,1746269245218,-151.0,0.00019178,2]
[359706670,1746269245238,-151.0,0.00019178,2]
[359706671,1746269245262,-151.0,0.00019178,2]
[359706672,1746269245283,-193.517092,0.00019178,2]
[359706673,1746269245305,-300.0,0.00019178,2]
[359706674,1746269245327,-1500.0,0.000192,2]
[359706675,1746269245349,-160.0,0.00019238,2]
[359706676,1746269245370,-160.0,0.00019238,2]
[359706677,1746269245389,-841.47485993,0.00019238,2]
[359706678,1746269245409,-421.66712248,0.00019238,2]
[359706679,1746269245432,-182.16284668,0.00019238,2]
[359706680,1746269245450,-160.0,0.00019238,2]
[359706681,1746269245472,-12601.56422439,0.00019238,2]
[359706682,1746269245492,-160.0,0.00019238,2]
[359706683,1746269245511,-160.0,0.00019238,2]
[359706684,1746269245530,-160.0,0.00019238,2]
[359706685,1746269245552,-160.0,0.00019239,2]
[359706686,1746269245571,-160.0,0.00019239,2]
[359706687,1746269245592,-151.0,0.00019239,2]
[359706688,1746269245611,-151.0,0.00019239,2]
[359706689,1746269245632,-662.2069228,0.00019257,2]
[359706690,1746269245651,-400.0,0.00019319,2]
[359706691,1746269245672,-156.80514187,0.00019319,2]
[359706692,1746269245692,-400.0,0.00019319,2]
[359706693,1746269245713,-400.0,0.0001932,2]
[359706694,1746269245733,-400.0,0.0001932,2]
[359706695,1746269245753,-512.78,0.0001932,2]
[359706696,1746269245774,-543.44331169,0.0001932,2]
[359706697,1746269245795,-400.0,0.0001932,2]
[359706698,1746269245815,-2307.93,0.0001932,2]
[359706699,1746269245836,-854.19,0.0001932,2]
[359706700,1746269245858,-410.46,0.0001932,2]
[359706701,1746269245880,-400.0,0.0001932,2]
[359706702,1746269245901,-452.87,0.0001932,2]
[359706703,1746269245922,-1013.6,0.0001932,2]
[359706704,1746269245942,-496.97,0.0001932,2]
[359706705,1746269245962,-612.09,0.0001932,2]
[359706706,1746269245982,-400.0,0.0001932,2]
[359706707,1746269246002,-400.0,0.0001932,2]
[359706708,1746269246022,-1262.92,0.00019322,2]